fUST/lending_fUST_20250316
["ID","MTS","AMOUNT","RATE_DAILY","PERIOD"]
[356192087,1742054514140,300.0,0.00011,6]
[356192088,1742054590065,13431.1855776,7.397e-05,2]
[356192089,1742054591366,-1000.0,0.0002,120]
[356192090,1742054592977,-1000.0,0.0002,120]
[356192091,1742054594324,-1000.0,0.0002,120]
[356192092,1742054731511,399.0,7.992e-05,2]
[356192093,1742055005030,300.0,0.00011,6]
[356192128,1742055032082,-543.15596667,8.119e-05,2]
[356192140,1742055032199,-1874.80136907,8.119e-05,2]
[356192141,1742055032208,-300.0,8.218e-05,2]
[356192142,1742055032218,-500.0,8.219e-05,2]
[356192143,1742055032228,-500.0,8.219e-05,2]
[356192144,1742055032238,-451.98756145,8.219e-05,2]
[356192145,1742055032247,-500.0,8.219e-05,2]
[356192146,1742055032257,-500.0,8.219e-05,2]
[356192147,1742055032267,-500.0,8.219e-05,2]
[356192148,1742055032277,-500.0,8.219e-05,2]
[356192149,1742055032287,-500.0,8.219e-05,2]
[356192150,1742055032297,-500.0,8.219e-05,2]
[356192151,1742055032307,-500.0,8.219e-05,2]
[356192152,1742055032317,-632.60161556,8.219e-05,2]
[356192153,1742055032326,-500.0,8.219e-05,2]
[356192154,1742055032336,-500.0,8.219e-05,2]
[356192155,1742055032345,-500.0,8.219e-05,2]
[356192156,1742055032355,-500.0,8.219e-05,2]
[356192157,1742055032364,-500.0,8.219e-05,2]
[356192158,1742055032373,-542.51,8.219e-05,2]
[356192159,1742055032579,-658.82,8.219e-05,2]
[356192160,1742055032589,-500.0,8.219e-05,2]
[356192161,1742055032599,-500.0,8.219e-05,2]
[356192162,1742055032609,-500.0,8.219e-05,2]
[356192163,1742055032619,-519.53,8.219e-05,2]
[356192164,1742055032630,-500.0,8.219e-05,2]
[356192165,1742055032639,-500.0,8.219e-05,2]
[356192166,1742055032649,-500.0,8.219e-05,2]
[356192167,1742055032659,-500.0,8.219e-05,2]
[356192168,1742055032670,-500.0,8.219e-05,2]
[356192169,1742055032680,-500.0,8.219e-05,2]
[356192170,1742055032691,-543.84966772,8.219e-05,2]
[356192171,1742055032702,-500.0,8.219e-05,2]
[356192172,1742055032713,-500.0,8.219e-05,2]
[356192173,1742055032723,-500.0,8.219e-05,2]
[356192174,1742055032733,-500.0,8.219e-05,2]
[356192175,1742055032742,-500.0,8.219e-05,2]
[356192176,1742055032752,-870.48,8.219e-05,2]
[356192177,1742055032762,-622.36,8.219e-05,2]
[356192178,1742055032771,-500.0,8.219e-05,2]
[356192179,1742055032781,-217.30542967,8.219e-05,2]
[356192180,1742055032794,-282.69457033,8.219e-05,2]
[356192181,1742055032804,-578.48,8.219e-05,2]
[356192182,1742055032814,-500.0,8.219e-05,2]
[356192183,1742055032824,-623.89,8.219e-05,2]
[356192184,1742055032834,-500.0,8.219e-05,2]
[356192185,1742055032843,-114.93542967,8.219e-05,2]
[356192186,1742055032855,-385.06457033,8.219e-05,2]
[356192187,1742055032865,-500.0,8.219e-05,2]
[356192188,1742055032874,-721.47,8.219e-05,2]
[356192189,1742055032886,-500.0,8.219e-05,2]
[356192190,1742055032895,-500.0,8.219e-05,2]
[356192191,1742055032905,-143.46542967,8.219e-05,2]
[356192192,1742055032919,-1008.80457033,8.219e-05,2]
[356192193,1742055032928,-500.0,8.219e-05,2]
[356192194,1742055032938,-500.0,8.219e-05,2]
[356192195,1742055032948,-500.0,8.219e-05,2]
[356192196,1742055032957,-500.0,8.219e-05,2]
[356192197,1742055032967,-500.0,8.219e-05,2]
[356192198,1742055032976,-4.48196308,8.219e-05,2]
[356192199,1742055032997,-365.29219,8.219e-05,2]
[356192206,1742055040090,-399.0,8.052e-05,2]
[356192207,1742055040101,-130.22584692,8.219e-05,2]
[356192208,1742055040111,-111.68912082,8.219e-05,2]
[356192231,1742055042939,-388.31087918,8.219e-05,2]
[356192232,1742055042948,-500.0,8.219e-05,2]
[356192233,1742055042958,-310.34558408,8.219e-05,2]
[356192235,1742055046010,-189.65441592,8.219e-05,2]
[356192236,1742055046020,-500.0,8.219e-05,2]
[356192237,1742055046031,-272.95018575,8.219e-05,2]
[356192238,1742055065630,499.98,0.00014001,30]
[356192239,1742055072922,500.02,0.00014001,30]
[356192240,1742055473305,182.1179144,7.219e-05,2]
[356192241,1742055673777,341.1300758,7.219e-05,2]
[356192242,1742055782501,300.0,0.00011,6]
[356192255,1742056126761,367.33105272,8e-05,2]
[356192299,1742056232242,-300.0,8.074e-05,2]
[356192301,1742056232252,-399.0,8.075e-05,2]
[356192302,1742056232263,-150.0,8.075e-05,2]
[356192303,1742056232273,-67321.53943429,8.119e-05,2]
[356192304,1742056232282,-613.04239626,8.218e-05,2]
[356192305,1742056232292,-268.42864854,8.218e-05,2]
[356192306,1742056232301,-268.42864852,8.218e-05,2]
[356192307,1742056232311,-268.42864852,8.219e-05,2]
[356192308,1742056232321,-268.42864852,8.219e-05,2]
[356192309,1742056232331,-500.0,8.219e-05,2]
[356192310,1742056232344,-811.33,8.219e-05,2]
[356192311,1742056232354,-500.0,8.219e-05,2]
[356192312,1742056232364,-500.0,8.219e-05,2]
[356192313,1742056232374,-209.88528628,8.219e-05,2]
[356192314,1742056232384,-500.55339464,8.219e-05,2]
[356192315,1742056232394,-503.32886385,8.219e-05,2]
[356192316,1742056232403,-500.0,8.219e-05,2]
[356192317,1742056232414,-500.0,8.219e-05,2]
[356192318,1742056232426,-500.0,8.219e-05,2]
[356192319,1742056232436,-500.0,8.219e-05,2]
[356192320,1742056232447,-516.79184084,8.219e-05,2]
[356192321,1742056232457,-568.27,8.219e-05,2]
[356192322,1742056232467,-509.29647661,8.219e-05,2]
[356192323,1742056232477,-500.0,8.219e-05,2]
[356192324,1742056232486,-500.0,8.219e-05,2]
[356192325,1742056232496,-546.14,8.219e-05,2]
[356192326,1742056232506,-500.0,8.219e-05,2]
[356192327,1742056232516,-516.69996887,8.219e-05,2]
[356192328,1742056232525,-500.0,8.219e-05,2]
[356192329,1742056232535,-500.0,8.219e-05,2]
[356192330,1742056232546,-500.0,8.219e-05,2]
[356192331,1742056232556,-500.0,8.219e-05,2]
[356192332,1742056232566,-500.0,8.219e-05,2]
[356192333,1742056232576,-505.59494341,8.219e-05,2]
[356192334,1742056232587,-500.0,8.219e-05,2]
[356192335,1742056232596,-508.15163645,8.219e-05,2]
[356192336,1742056232606,-500.0,8.219e-05,2]
[356192337,1742056232616,-500.0,8.219e-05,2]
[356192338,1742056232625,-580.84800918,8.219e-05,2]
[356192339,1742056232635,-500.0,8.219e-05,2]
[356192340,1742056232645,-500.0,8.219e-05,2]
[356192341,1742056232655,-500.0,8.219e-05,2]
[356192342,1742056232665,-500.0,8.219e-05,2]
[356192343,1742056232675,-390.51466749,8.219e-05,2]
[356192344,1742056232684,-500.0,8.219e-05,2]
[356192345,1742056232695,-500.0,8.219e-05,2]
[356192346,1742056232705,-500.0,8.219e-05,2]
[356192347,1742056232715,-500.0,8.219e-05,2]
[356192348,1742056232725,-500.0,8.219e-05,2]
[356192349,1742056232735,-505.83230362,8.219e-05,2]
[356192350,1742056232745,-532.67757338,8.219e-05,2]
[356192351,1742056232754,-500.0,8.219e-05,2]
[356192352,1742056232763,-632.81447722,8.219e-05,2]
[356192353,1742056232773,-500.0,8.219e-05,2]
[356192354,1742056232783,-500.0,8.219e-05,2]
[356192355,1742056232792,-291.56510433,8.219e-05,2]
[356192356,1742056232802,-500.0,8.219e-05,2]
[356192357,1742056232811,-181.72691527,8.219e-05,2]
[356192358,1742056232821,-500.0,8.219e-05,2]
[356192359,1742056232832,-268.82627915,8.219e-05,2]
[356192360,1742056232841,-500.0,8.219e-05,2]
[356192361,1742056232851,-500.0,8.219e-05,2]
[356192362,1742056232861,-500.0,8.219e-05,2]
[356192363,1742056232870,-500.0,8.219e-05,2]
[356192364,1742056232880,-500.0,8.219e-05,2]
[356192365,1742056232889,-500.0,8.219e-05,2]
[356192366,1742056232899,-506.19053214,8.219e-05,2]
[356192367,1742056232911,-500.0,8.219e-05,2]
[356192368,1742056232921,-500.0,8.219e-05,2]
[356192369,1742056232930,-500.0,8.219e-05,2]
[356192370,1742056232940,-500.0,8.219e-05,2]
[356192371,1742056232949,-500.0,8.219e-05,2]
[356192372,1742056232958,-500.0,8.219e-05,2]
[356192373,1742056232967,-500.0,8.219e-05,2]
[356192374,1742056232977,-500.0,8.219e-05,2]
[356192375,1742056232986,-500.0,8.219e-05,2]
[356192376,1742056232996,-203.21299305,8.219e-05,2]
[356192377,1742056233005,-631.37,8.219e-05,2]
[356192378,1742056233015,-500.0,8.219e-05,2]
[356192379,1742056233025,-500.0,8.219e-05,2]
[356192380,1742056233034,-500.0,8.219e-05,2]
[356192381,1742056233044,-382.31623537,8.219e-05,2]
[356192382,1742056233054,-500.0,8.219e-05,2]
[356192383,1742056233064,-500.0,8.219e-05,2]
[356192384,1742056233073,-507.65,8.219e-05,2]
[356192385,1742056233084,-500.0,8.219e-05,2]
[356192386,1742056233094,-500.0,8.219e-05,2]
[356192387,1742056233104,-500.0,8.219e-05,2]
[356192388,1742056233113,-500.0,8.219e-05,2]
[356192389,1742056233122,-500.0,8.219e-05,2]
[356192390,1742056233132,-507.08,8.219e-05,2]
[356192391,1742056233141,-500.0,8.219e-05,2]
[356192392,1742056233151,-500.0,8.219e-05,2]
[356192393,1742056233160,-500.0,8.219e-05,2]
[356192394,1742056233169,-500.0,8.219e-05,2]
[356192395,1742056233179,-500.0,8.219e-05,2]
[356192396,1742056233189,-568.93332566,8.219e-05,2]
[356192397,1742056233198,-500.0,8.219e-05,2]
[356192398,1742056233208,-500.0,8.219e-05,2]
[356192399,1742056233217,-500.0,8.219e-05,2]
[356192400,1742056233227,-500.0,8.219e-05,2]
[356192401,1742056233236,-500.0,8.219e-05,2]
[356192402,1742056233246,-542.85,8.219e-05,2]
[356192403,1742056233256,-500.0,8.219e-05,2]
[356192404,1742056233265,-591.42,8.219e-05,2]
[356192405,1742056233275,-500.0,8.219e-05,2]
[356192406,1742056233285,-901.1,8.219e-05,2]
[356192407,1742056233294,-500.0,8.219e-05,2]
[356192408,1742056233305,-539.42098008,8.219e-05,2]
[356192409,1742056233315,-679.27,8.219e-05,2]
[356192410,1742056233325,-500.0,8.219e-05,2]
[356192411,1742056233335,-500.0,8.219e-05,2]
[356192412,1742056233349,-500.0,8.219e-05,2]
[356192413,1742056233366,-500.0,8.219e-05,2]
[356192414,1742056233376,-500.0,8.219e-05,2]
[356192415,1742056233386,-500.0,8.219e-05,2]
[356192416,1742056233396,-666.69,8.219e-05,2]
[356192417,1742056233406,-781.9,8.219e-05,2]
[356192418,1742056233416,-500.0,8.219e-05,2]
[356192419,1742056233427,-500.0,8.219e-05,2]
[356192420,1742056233437,-500.0,8.219e-05,2]
[356192421,1742056233447,-500.0,8.219e-05,2]
[356192422,1742056233456,-500.0,8.219e-05,2]
[356192423,1742056233466,-500.0,8.219e-05,2]
[356192424,1742056233476,-500.0,8.219e-05,2]
[356192425,1742056233486,-500.0,8.219e-05,2]
[356192426,1742056233496,-500.0,8.219e-05,2]
[356192427,1742056233507,-500.0,8.219e-05,2]
[356192428,1742056233517,-500.0,8.219e-05,2]
[356192429,1742056233527,-500.0,8.219e-05,2]
[356192430,1742056233537,-742.13,8.219e-05,2]
[356192431,1742056233548,-500.0,8.219e-05,2]
[356192432,1742056233558,-500.0,8.219e-05,2]
[356192433,1742056233568,-500.0,8.219e-05,2]
[356192434,1742056233578,-559.83959742,8.219e-05,2]
[356192679,1742056242966,-540.0,8.075e-05,2]
[356192681,1742056242976,-361.29040258,8.219e-05,2]
[356192682,1742056242985,-500.0,8.219e-05,2]
[356192684,1742056242995,-500.0,8.219e-05,2]
[356192686,1742056243004,-500.0,8.219e-05,2]
[356192688,1742056243013,-222.64434095,8.219e-05,2]
[356192689,1742056243025,-277.35565905,8.219e-05,2]
[356192690,1742056243034,-500.0,8.219e-05,2]
[356192692,1742056243043,-503.69323841,8.219e-05,2]
[356192694,1742056243052,-500.0,8.219e-05,2]
[356192695,1742056243062,-500.0,8.219e-05,2]
[356192696,1742056243071,-706.82,8.219e-05,2]
[356192697,1742056243080,-500.0,8.219e-05,2]
[356192698,1742056243089,-752.02,8.219e-05,2]
[356192700,1742056243098,-812.15,8.219e-05,2]
[356192701,1742056243108,-500.0,8.219e-05,2]
[356192702,1742056243129,-500.0,8.219e-05,2]
[356192703,1742056243140,-500.0,8.219e-05,2]
[356192704,1742056243150,-500.0,8.219e-05,2]
[356192705,1742056243159,-500.0,8.219e-05,2]
[356192706,1742056243170,-500.0,8.219e-05,2]
[356192707,1742056243180,-500.0,8.219e-05,2]
[356192708,1742056243189,-500.0,8.219e-05,2]
[356192709,1742056243199,-500.0,8.219e-05,2]
[356192710,1742056243210,-500.0,8.219e-05,2]
[356192711,1742056243219,-500.0,8.219e-05,2]
[356192712,1742056243230,-617.27856887,8.219e-05,2]
[356192713,1742056243241,-277.62339974,8.219e-05,2]
[356192714,1742056243251,-500.0,8.219e-05,2]
[356192715,1742056243261,-500.0,8.219e-05,2]
[356192716,1742056243270,-500.0,8.219e-05,2]
[356192717,1742056243280,-500.0,8.219e-05,2]
[356192718,1742056243290,-500.0,8.219e-05,2]
[356192719,1742056243300,-500.61417836,8.219e-05,2]
[356192720,1742056243310,-2892.54,8.219e-05,2]
[356192721,1742056243320,-500.0,8.219e-05,2]
[356192722,1742056243329,-500.0,8.219e-05,2]
[356192723,1742056243339,-402.71857577,8.219e-05,2]
[356192724,1742056243354,-500.0,8.219e-05,2]
[356192725,1742056243364,-500.0,8.219e-05,2]
[356192726,1742056243374,-601.35,8.219e-05,2]
[356192727,1742056243383,-522.93,8.219e-05,2]
[356192728,1742056243394,-500.0,8.219e-05,2]
[356192729,1742056243404,-500.0,8.219e-05,2]
[356192730,1742056243413,-5430.29,8.219e-05,2]
[356192731,1742056243425,-501.73273045,8.219e-05,2]
[356192732,1742056243435,-500.0,8.219e-05,2]
[356192733,1742056243446,-500.0,8.219e-05,2]
[356192734,1742056243457,-505.45708474,8.219e-05,2]
[356192735,1742056243467,-500.0,8.219e-05,2]
[356192736,1742056243478,-500.0,8.219e-05,2]
[356192737,1742056243489,-1295.0,8.219e-05,2]
[356192738,1742056243499,-500.0,8.219e-05,2]
[356192739,1742056243510,-500.0,8.219e-05,2]
[356192740,1742056243520,-4982.75,8.219e-05,2]
[356192741,1742056243530,-500.0,8.219e-05,2]
[356192742,1742056243540,-500.0,8.219e-05,2]
[356192743,1742056243550,-500.0,8.219e-05,2]
[356192744,1742056243559,-500.0,8.219e-05,2]
[356192745,1742056243569,-500.0,8.219e-05,2]
[356192746,1742056243579,-1680.76,8.219e-05,2]
[356192747,1742056243589,-4070.92,8.219e-05,2]
[356192748,1742056243599,-584.34,8.219e-05,2]
[356192749,1742056243609,-500.0,8.219e-05,2]
[356192750,1742056243619,-500.0,8.219e-05,2]
[356192751,1742056243628,-7128.75,8.219e-05,2]
[356192752,1742056243638,-500.0,8.219e-05,2]
[356192753,1742056243648,-500.0,8.219e-05,2]
[356192754,1742056243657,-500.0,8.219e-05,2]
[356192755,1742056243667,-500.0,8.219e-05,2]
[356192756,1742056243678,-500.0,8.219e-05,2]
[356192757,1742056243688,-500.0,8.219e-05,2]
[356192758,1742056243699,-500.0,8.219e-05,2]
[356192759,1742056243709,-500.0,8.219e-05,2]
[356192760,1742056243719,-500.0,8.219e-05,2]
[356192761,1742056243729,-500.0,8.219e-05,2]
[356192762,1742056243739,-500.0,8.219e-05,2]
[356192763,1742056243752,-500.0,8.219e-05,2]
[356192764,1742056243762,-635.26,8.219e-05,2]
[356192765,1742056243772,-500.0,8.219e-05,2]
[356192766,1742056243782,-500.0,8.219e-05,2]
[356192767,1742056243791,-512.24,8.219e-05,2]
[356192768,1742056243801,-500.0,8.219e-05,2]
[356192769,1742056243811,-500.0,8.219e-05,2]
[356192770,1742056243821,-500.0,8.219e-05,2]
[356192771,1742056243831,-500.0,8.219e-05,2]
[356192772,1742056243842,-500.0,8.219e-05,2]
[356192773,1742056243852,-500.0,8.219e-05,2]
[356192774,1742056243862,-917.14,8.219e-05,2]
[356192775,1742056243873,-500.0,8.219e-05,2]
[356192776,1742056243883,-500.0,8.219e-05,2]
[356192777,1742056243893,-500.0,8.219e-05,2]
[356192778,1742056243903,-500.0,8.219e-05,2]
[356192779,1742056243913,-500.0,8.219e-05,2]
[356192780,1742056243923,-833.38,8.219e-05,2]
[356192781,1742056243933,-1315.83,8.219e-05,2]
[356192782,1742056243943,-500.0,8.219e-05,2]
[356192783,1742056243954,-12074.76,8.219e-05,2]
[356192784,1742056243963,-579.25,8.219e-05,2]
[356192785,1742056243974,-500.0,8.219e-05,2]
[356192786,1742056243983,-500.0,8.219e-05,2]
[356192787,1742056243993,-1326.0,8.219e-05,2]
[356192788,1742056244004,-1507.66,8.219e-05,2]
[356192789,1742056244014,-500.0,8.219e-05,2]
[356192790,1742056244024,-4429.72,8.219e-05,2]
[356192791,1742056244034,-500.0,8.219e-05,2]
[356192792,1742056244044,-7090.79,8.219e-05,2]
[356192793,1742056244055,-500.0,8.219e-05,2]
[356192794,1742056244065,-500.0,8.219e-05,2]
[356192795,1742056244076,-8902.22,8.219e-05,2]
[356192796,1742056244085,-2565.71,8.219e-05,2]
[356192797,1742056244096,-4675.25,8.219e-05,2]
[356192798,1742056244106,-3556.08,8.219e-05,2]
[356192799,1742056244116,-1104.45,8.219e-05,2]
[356192800,1742056244127,-504.23185441,8.219e-05,2]
[356192801,1742056244136,-500.0,8.219e-05,2]
[356192802,1742056244147,-1295.66,8.219e-05,2]
[356192803,1742056244157,-3007.97,8.219e-05,2]
[356192804,1742056244167,-676.07,8.219e-05,2]
[356192805,1742056244177,-1415.93,8.219e-05,2]
[356192806,1742056244186,-500.0,8.219e-05,2]
[356192807,1742056244196,-1203.07,8.219e-05,2]
[356192808,1742056244211,-500.0,8.219e-05,2]
[356192809,1742056244223,-504.75591041,8.219e-05,2]
[356192810,1742056244233,-500.0,8.219e-05,2]
[356192811,1742056244243,-500.0,8.219e-05,2]
[356192812,1742056244252,-500.0,8.219e-05,2]
[356192813,1742056244262,-505.16326668,8.219e-05,2]
[356192814,1742056244272,-500.0,8.219e-05,2]
[356192815,1742056244282,-500.0,8.219e-05,2]
[356192816,1742056244293,-575.02,8.219e-05,2]
[356192817,1742056244303,-500.0,8.219e-05,2]
[356192818,1742056244313,-500.89038942,8.219e-05,2]
[356192819,1742056244323,-3069.69,8.219e-05,2]
[356192820,1742056244333,-500.0,8.219e-05,2]
[356192822,1742056244343,-500.0,8.219e-05,2]
[356192824,1742056244356,-1898.05,8.219e-05,2]
[356192825,1742056244366,-500.0,8.219e-05,2]
[356192827,1742056244376,-4600.11,8.219e-05,2]
[356192829,1742056244386,-529.98,8.219e-05,2]
[356192831,1742056244397,-701.74,8.219e-05,2]
[356192832,1742056244407,-500.0,8.219e-05,2]
[356192833,1742056244417,-500.0,8.219e-05,2]
[356192834,1742056244427,-500.0,8.219e-05,2]
[356192835,1742056244437,-509.90071893,8.219e-05,2]
[356192836,1742056244447,-500.0,8.219e-05,2]
[356192837,1742056244458,-500.0,8.219e-05,2]
[356192838,1742056244468,-10138.6,8.219e-05,2]
[356192839,1742056244477,-926.0,8.219e-05,2]
[356192840,1742056244486,-5967.40695477,8.219e-05,2]
[356192851,1742056246045,-4952.07304523,8.219e-05,2]
[356192852,1742056246055,-551.37,8.219e-05,2]
[356192853,1742056246065,-2973.41,8.219e-05,2]
[356192854,1742056246075,-500.0,8.219e-05,2]
[356192855,1742056246085,-500.0,8.219e-05,2]
[356192856,1742056246095,-528.97233856,8.219e-05,2]
[356192857,1742056246105,-500.0,8.219e-05,2]
[356192858,1742056246115,-500.0,8.219e-05,2]
[356192859,1742056246124,-3465.36,8.219e-05,2]
[356192860,1742056246134,-887.14,8.219e-05,2]
[356192861,1742056246143,-500.0,8.219e-05,2]
[356192862,1742056246153,-507.94291532,8.219e-05,2]
[356192863,1742056246162,-2368.47,8.219e-05,2]
[356192864,1742056246172,-500.0,8.219e-05,2]
[356192865,1742056246182,-170.6170019,8.219e-05,2]
[356192866,1742056246191,-500.0,8.219e-05,2]
[356192867,1742056246202,-500.0,8.219e-05,2]
[356192868,1742056246211,-565.48067843,8.219e-05,2]
[356192869,1742056246220,-500.0,8.219e-05,2]
[356192870,1742056246229,-500.0,8.219e-05,2]
[356192871,1742056246238,-500.0,8.219e-05,2]
[356192872,1742056246248,-500.0,8.219e-05,2]
[356192873,1742056246257,-1506.2,8.219e-05,2]
[356192874,1742056246266,-6848.52,8.219e-05,2]
[356192875,1742056246276,-500.0,8.219e-05,2]
[356192876,1742056246286,-500.0,8.219e-05,2]
[356192877,1742056246296,-500.0,8.219e-05,2]
[356192878,1742056246315,-338.86845947,8.219e-05,2]
[356192879,1742056246326,-1131.31,8.219e-05,2]
[356192880,1742056246336,-10000.0,8.219e-05,2]
[356192881,1742056246348,-160.0,8.318e-05,2]
[356192882,1742056246369,-500.0,8.473e-05,2]
[356192883,1742056246380,-500.0,8.473e-05,2]
[356192884,1742056246390,-500.0,8.473e-05,2]
[356192885,1742056246400,-500.0,8.473e-05,2]
[356192886,1742056246411,-500.0,8.473e-05,2]
[356192888,1742056246420,-269.71596072,8.473e-05,2]
[356192889,1742056246430,-500.0,8.473e-05,2]
[356192891,1742056246441,-500.0,8.473e-05,2]
[356192893,1742056246452,-500.0,8.473e-05,2]
[356192894,1742056246462,-500.0,8.473e-05,2]
[356192896,1742056246473,-500.0,8.473e-05,2]
[356192898,1742056246484,-500.0,8.473e-05,2]
[356192900,1742056246493,-500.0,8.473e-05,2]
[356192902,1742056246503,-500.0,8.473e-05,2]
[356192903,1742056246513,-500.0,8.473e-05,2]
[356192905,1742056246523,-500.0,8.473e-05,2]
[356192906,1742056246534,-500.0,8.473e-05,2]
[356192907,1742056246544,-500.0,8.473e-05,2]
[356192908,1742056246554,-500.0,8.473e-05,2]
[356192909,1742056246564,-500.0,8.493e-05,2]
[356192910,1742056246575,-454.52523814,8.493e-05,2]
[356192911,1742056246586,-811.33,8.493e-05,2]
[356192912,1742056246595,-500.0,8.493e-05,2]
[356192913,1742056246605,-568.27,8.493e-05,2]
[356192914,1742056246614,-546.14,8.493e-05,2]
[356192915,1742056246624,-500.0,8.493e-05,2]
[356192916,1742056246634,-461.9,8.493e-05,2]
[356192917,1742056246644,-500.0,8.493e-05,2]
[356192918,1742056246654,-500.0,8.493e-05,2]
[356192919,1742056246663,-500.0,8.493e-05,2]
[356192920,1742056246674,-500.0,8.493e-05,2]
[356192921,1742056246685,-536.86682808,8.493e-05,2]
[356192922,1742056246695,-500.0,8.493e-05,2]
[356192923,1742056246705,-500.0,8.493e-05,2]
[356192924,1742056246715,-500.0,8.493e-05,2]
[356192925,1742056246725,-151.0,8.493e-05,2]
[356192926,1742056246735,-500.0,8.493e-05,2]
[356192927,1742056246745,-500.0,8.493e-05,2]
[356192928,1742056246756,-500.0,8.493e-05,2]
[356192929,1742056246766,-500.0,8.493e-05,2]
[356192930,1742056246776,-247.02028132,8.493e-05,2]
[356192931,1742056246785,-500.0,8.493e-05,2]
[356192932,1742056246795,-500.0,8.493e-05,2]
[356192933,1742056246805,-500.0,8.493e-05,2]
[356192934,1742056246814,-500.0,8.493e-05,2]
[356192935,1742056246824,-151.0,8.493e-05,2]
[356192936,1742056246833,-500.0,8.493e-05,2]
[356192937,1742056246843,-500.0,8.493e-05,2]
[356192938,1742056246853,-500.0,8.493e-05,2]
[356192939,1742056246863,-500.0,8.493e-05,2]
[356192940,1742056246872,-500.0,8.493e-05,2]
[356192941,1742056246882,-500.0,8.493e-05,2]
[356192942,1742056246892,-500.0,8.493e-05,2]
[356192943,1742056246902,-500.0,8.493e-05,2]
[356192944,1742056246911,-500.0,8.493e-05,2]
[356192945,1742056246922,-542.85,8.493e-05,2]
[356192946,1742056246931,-591.42,8.493e-05,2]
[356192947,1742056247188,-901.1,8.493e-05,2]
[356192948,1742056247198,-679.27,8.493e-05,2]
[356192949,1742056247208,-500.0,8.493e-05,2]
[356192950,1742056247218,-500.0,8.493e-05,2]
[356192951,1742056247229,-500.0,8.493e-05,2]
[356192952,1742056247239,-500.0,8.493e-05,2]
[356192953,1742056247249,-666.69,8.493e-05,2]
[356192954,1742056247258,-781.9,8.493e-05,2]
[356192955,1742056247269,-225.78777769,8.493e-05,2]
[356192956,1742056247279,-500.0,8.493e-05,2]
[356192957,1742056247289,-500.0,8.493e-05,2]
[356192958,1742056247299,-500.0,8.493e-05,2]
[356192959,1742056247308,-500.0,8.493e-05,2]
[356192960,1742056247319,-500.0,8.493e-05,2]
[356192961,1742056247328,-500.0,8.493e-05,2]
[356192962,1742056247339,-500.0,8.493e-05,2]
[356192963,1742056247352,-500.0,8.493e-05,2]
[356192964,1742056247363,-742.13,8.493e-05,2]
[356192965,1742056247373,-500.0,8.493e-05,2]
[356192966,1742056247383,-500.0,8.493e-05,2]
[356192967,1742056247395,-500.0,8.493e-05,2]
[356192968,1742056247407,-921.13,8.493e-05,2]
[356192969,1742056247416,-500.0,8.493e-05,2]
[356192970,1742056247426,-516.69,8.493e-05,2]
[356192971,1742056247435,-500.0,8.493e-05,2]
[356192972,1742056247445,-500.0,8.493e-05,2]
[356192973,1742056247457,-500.0,8.493e-05,2]
[356192974,1742056247466,-706.82,8.493e-05,2]
[356192975,1742056247476,-500.0,8.493e-05,2]
[356192976,1742056247486,-752.02,8.493e-05,2]
[356192977,1742056247496,-812.15,8.493e-05,2]
[356192978,1742056247506,-500.0,8.493e-05,2]
[356192979,1742056247516,-500.0,8.493e-05,2]
[356192980,1742056247527,-500.0,8.493e-05,2]
[356192981,1742056247537,-500.0,8.493e-05,2]
[356192982,1742056247546,-500.0,8.493e-05,2]
[356192983,1742056247556,-500.0,8.493e-05,2]
[356192984,1742056247566,-500.0,8.493e-05,2]
[356192985,1742056247576,-500.0,8.493e-05,2]
[356192986,1742056247587,-500.0,8.493e-05,2]
[356192987,1742056247596,-500.0,8.493e-05,2]
[356192988,1742056247606,-2892.54,8.493e-05,2]
[356192989,1742056247616,-500.0,8.493e-05,2]
[356192990,1742056247626,-500.0,8.493e-05,2]